bitfinex-derivatives/quotes_BNBF0:USTF0_20250211
["timestamp","ask_amount","ask_price","bid_price","bid_amount"]
[1739241495429,1.48949976,617.06,616.12,0.26261209]
[1739241495627,1.48949976,617.06,616.13,0.26261209]
[1739241495829,1.07370546,617.05,616.12,0.26261209]
[1739241496032,1.48949976,617.04,616.13,0.26261209]
[1739241496239,1.48949976,617.04,616.14,0.26261209]
[1739241496532,1.48949976,617.04,616.15,0.26261209]
[1739241496733,1.07370546,617.03,616.12,0.26261209]
[1739241496928,1.48949976,617.02,616.13,0.26261209]
[1739241497130,1.48949976,617.02,616.12,0.26261209]
[1739241497329,1.07370546,617.01,616.13,0.26261209]
[1739241497526,1.07370546,617.01,616.12,0.26261209]
[1739241497931,1.07370546,617.11,616.13,0.32460681]
[1739241498532,1.07370546,617.95,616.13,0.32460681]
[1739241498835,0.32366125,617.93,616.13,0.32460681]
[1739241499030,2.85937089,617.92,616.13,0.32460681]
[1739241499328,0.32367697,617.9,616.13,0.32460681]
[1739241499533,2.85937089,617.89,616.13,0.32460681]
[1739241499732,0.32369268,617.87,616.13,0.32460681]
[1739241499932,1.78566543,617.86,616.13,0.32460681]
[1739241500133,0.3237084,617.84,616.13,0.32460681]
[1739241500335,1.78535071,617.83,616.13,0.32460681]
[1739241500534,0.32372412,617.81,616.13,0.32460681]
[1739241500735,1.48754733,617.8,616.13,0.32460681]
[1739241500937,0.32373984,617.78,616.13,0.32460681]
[1739241501236,1.78538485,617.77,616.13,0.32460681]
[1739241501435,0.32375556,617.75,616.13,0.32460681]
[1739241501631,1.78538485,617.74,616.13,0.32460681]
[1739241501836,0.32377128,617.72,616.13,0.32460681]
[1739241502037,1.78538485,617.71,616.13,0.32460681]
[1739241502341,0.32378701,617.69,616.13,0.32460681]
[1739241502531,1.78488233,617.68,616.13,0.32460681]
[1739241502735,1.07370546,617.7,616.13,0.32460681]
[1739241502736,0.32380273,617.66,616.13,0.32460681]
[1739241503036,1.78488233,617.65,616.13,0.32460681]
[1739241503238,1.78488233,617.64,616.13,0.32460681]
[1739241503437,0.32382371,617.62,616.13,0.32460681]
[1739241503637,1.78488233,617.61,616.13,0.32460681]
[1739241503838,3.18242198,617.6,616.13,0.32460681]
[1739241504038,2.10872177,617.59,616.13,0.32460681]
[1739241504238,2.10872701,617.58,616.13,0.32460681]
[1739241504438,2.10873225,617.57,616.13,0.32460681]
[1739241504640,2.1087375,617.56,616.13,0.32460681]
[1739241504939,1.81090522,617.55,616.13,0.32460681]
[1739241505134,2.10875152,617.54,616.13,0.32460681]
[1739241505340,2.10875676,617.53,616.13,0.32460681]
[1739241505542,3.18246746,617.52,616.13,0.32460681]
[1739241505737,2.10876725,617.51,616.13,0.32460681]
[1739241506040,3.18247795,617.5,616.13,0.32460681]
[1739241506235,2.10877774,617.49,616.13,0.32460681]
[1739241506435,2.10878299,617.48,616.13,0.32460681]
[1739241506638,1.81094718,617.47,616.13,0.32460681]
[1739241506845,1.81095243,617.46,616.13,0.32460681]
[1739241507141,2.88466313,617.45,616.13,0.32460681]
[1739241507440,1.81096292,617.44,616.13,0.32460681]
[1739241507645,1.48704481,617.43,616.13,0.32460681]
[1739241507840,1.48704481,617.42,616.13,0.32460681]
[1739241508142,2.56075027,617.41,616.13,0.32460681]
[1739241508342,1.48704481,617.4,616.13,0.32460681]
[1739241508536,1.48704481,617.39,616.13,0.32460681]
[1739241508737,1.48704481,617.38,616.13,0.32460681]
[1739241508941,1.48704481,617.37,616.14,0.26256729]
[1739241509237,1.07370546,617.36,616.15,0.32459628]
[1739241509443,1.48704481,617.35,616.16,0.26256729]
[1739241510043,2.56075027,617.34,616.16,0.26256729]
[1739241510240,2.85860796,617.33,616.16,0.26256729]
[1739241510545,1.7849025,617.32,616.16,0.26256729]
[1739241510745,1.48704481,617.31,616.16,0.26256729]
[1739241510948,1.48704481,617.3,616.16,0.26256729]
[1739241511146,1.48704481,617.3,616.15,0.32459628]
[1739241511447,1.07370546,617.29,616.16,0.2626002]
[1739241511747,2.56075027,617.28,616.16,0.2626002]
[1739241511945,1.48704481,617.27,616.16,0.2626002]
[1739241512342,1.07370546,617.26,616.16,0.2626002]
[1739241512546,1.48704481,617.25,616.16,0.2626002]
[1739241513047,1.48704481,617.25,616.15,0.32459628]
[1739241513048,1.07370546,617.24,616.15,0.32459628]
[1739241513244,1.48704481,617.23,616.16,0.26259075]
[1739241513442,2.55934308,617.22,616.16,0.26259075]
[1739241513648,1.48563762,617.21,616.16,0.26259075]
[1739241513847,1.07370546,617.2,616.16,0.26259075]
[1739241514048,1.48563762,617.19,616.16,0.26259075]
[1739241514350,1.07370546,617.18,616.16,0.26259075]
[1739241514647,1.48563762,617.17,616.16,0.26259075]
[1739241515042,1.07370546,617.16,616.16,0.26259075]
[1739241515249,1.48563762,617.15,616.16,0.26259075]
[1739241515649,1.07370546,617.14,616.16,0.26259075]
[1739241515951,1.48563762,617.13,616.16,0.26259075]
[1739241516550,1.07370546,617.12,616.16,0.26259075]
[1739241516752,1.48563762,617.11,616.16,0.26259075]
[1739241517349,1.07370546,617.1,616.16,0.26259075]
[1739241517549,1.48563762,617.09,616.16,0.26259075]
[1739241518250,1.48563762,617.09,616.17,0.26260322]
[1739241518550,1.07370546,617.08,616.18,0.26260322]
[1739241518850,1.48563762,617.07,616.19,0.26260322]
[1739241519046,1.48563762,617.07,616.15,0.32459628]
[1739241519248,1.48563762,617.07,616.16,0.26260803]
[1739241519544,1.07370546,617.06,616.16,0.26260803]
[1739241520546,1.07370546,617.43,616.16,0.26260803]
[1739241520852,2.10638537,617.42,616.16,0.26260803]
[1739241521052,3.18009608,617.41,616.16,0.26260803]
[1739241521259,0.62181313,617.4,616.16,0.26260803]
[1739241521453,2.10648758,617.39,616.16,0.26260803]
[1739241521653,1.78254324,617.38,616.16,0.26260803]
[1739241521854,1.78248691,617.37,616.16,0.26260803]
[1739241522053,1.78248691,617.36,616.16,0.26260803]
[1739241522254,1.78253505,617.35,616.15,0.32459628]
[1739241522454,2.55831833,617.34,616.15,0.32459628]
[1739241522654,1.78253505,617.33,616.15,0.32459628]
[1739241522854,1.78253505,617.32,616.15,0.32459628]
[1739241523155,1.78253505,617.31,616.15,0.32459628]
[1739241523356,1.78253505,617.3,616.01,1.69317661]
[1739241523547,1.78230314,617.29,616.01,1.69317661]
[1739241523749,1.07370546,617.31,616.01,1.69317661]
[1739241523750,1.78230314,617.28,616.01,1.69317661]
[1739241523952,1.78230314,617.27,616.01,1.69317661]
[1739241524152,1.78230314,617.26,616.01,1.69317661]
[1739241524350,1.78230314,617.25,616.01,1.69317661]
[1739241524552,1.48438096,617.24,616.01,1.69317661]
[1739241524751,1.48438096,617.23,616.01,1.69317661]
[1739241524954,2.55808642,617.22,616.01,1.69317661]
[1739241525257,1.48438096,617.21,616.01,1.69317661]
[1739241525457,1.48438096,617.2,616.01,1.69317661]
[1739241525654,1.48438096,617.19,616.01,1.69317661]
[1739241525854,1.48438096,617.18,616.01,1.69317661]
[1739241526059,1.48438096,617.17,616.01,1.69317661]
[1739241526258,1.48438096,617.16,616.01,1.69317661]
[1739241526459,1.48438096,617.15,616.01,1.69317661]
[1739241526655,1.07370546,617.17,616.01,1.69317661]
[1739241526656,1.48438096,617.14,616.01,1.69317661]
[1739241526854,1.48438096,617.13,616.01,1.69317661]
[1739241527055,1.48438096,617.12,616.01,1.69317661]
[1739241527758,1.07370546,617.11,616.01,1.69317661]
[1739241527959,1.48438096,617.1,616.01,1.69317661]
[1739241528360,1.07370546,617.09,616.01,1.69317661]
[1739241528559,1.48438096,617.08,616.01,1.69317661]
[1739241528955,2.55808642,617.08,616.01,1.69317661]
[1739241529160,1.48438096,617.07,616.01,1.69317661]
[1739241529359,1.07370546,617.06,616.01,1.69317661]
[1739241529554,1.48438096,617.05,616.01,1.69317661]
[1739241529861,1.4874451,617.04,616.01,1.69317661]
[1739241530255,1.07370546,617.05,616.01,1.69317661]
[1739241530455,1.48771484,617.04,615.55,1.19824383]
[1739241530659,1.48771484,617.03,615.56,0.26270202]
[1739241530859,1.48771484,617.02,615.56,0.26270202]
[1739241531058,1.48771484,617.01,615.56,0.26270202]
[1739241531261,1.48771484,617.0,615.56,0.26270202]
[1739241531462,1.48771484,616.99,615.56,0.26270202]
[1739241531659,1.48771484,616.98,615.56,0.26270202]
[1739241531861,1.48771484,616.97,615.56,0.26270202]
[1739241532062,1.07370546,617.0,615.56,0.26270202]
[1739241532063,1.48761617,616.96,615.56,0.26270202]
[1739241532258,1.48761617,616.95,615.44,0.26270202]
[1739241532966,1.07370546,616.94,615.44,0.26270202]
[1739241533166,1.48761617,616.93,615.44,0.26270202]
[1739241533367,2.56132163,616.93,615.44,0.26270202]
[1739241533567,1.48761617,616.92,615.44,0.26270202]
[1739241533769,1.07370546,616.92,615.44,0.26270202]
[1739241534068,1.48795666,616.91,615.45,0.26269988]
[1739241534267,1.48796705,616.9,615.46,0.26269988]
[1739241534469,1.48796705,616.89,615.44,0.26269988]
[1739241534667,1.48796705,616.89,615.45,0.26269988]
[1739241534861,1.48796705,616.89,615.46,0.26269988]
[1739241535062,1.48796705,616.89,615.39,1.19824383]
[1739241535063,1.07370546,616.88,615.47,0.26269988]
[1739241535266,1.48796705,616.87,615.4,0.26269988]
[1739241535465,1.48796705,616.87,615.41,0.26269988]
[1739241535665,1.07370546,616.86,615.48,1.69417263]
[1739241535964,1.48796705,616.85,615.49,0.26269988]
[1739241536867,1.07370546,616.84,615.49,0.26269988]
[1739241537167,1.48796705,616.83,615.48,1.69417263]
[1739241537368,1.48796705,616.83,615.49,0.26271355]
[1739241537569,1.07370546,616.82,615.49,0.26271355]
[1739241537768,1.48796705,616.81,615.49,0.26271355]
[1739241538366,1.48721567,616.8,615.5,0.26273507]
[1739241538664,1.48721567,616.79,615.51,0.26273507]
[1739241538969,1.48706593,616.78,615.52,0.26273507]
[1739241539163,1.48706593,616.77,615.49,0.26273507]
[1739241539366,1.48706593,616.76,615.49,0.26273507]
[1739241539869,1.07370546,616.75,615.49,0.26273507]
[1739241540869,1.48696903,616.74,615.49,0.26273507]
[1739241541064,1.48696903,616.73,615.49,0.26273507]
[1739241541266,1.48696903,616.72,615.49,0.26273507]
[1739241541463,1.48696903,616.71,615.49,0.26273507]
[1739241541764,1.48696903,616.7,615.49,0.26273507]
[1739241541966,1.07370546,616.73,615.49,0.26273507]
[1739241542165,1.07370546,616.73,615.5,0.26272835]
[1739241542368,1.48708942,616.72,615.51,0.26272835]
[1739241542563,1.07370546,617.6,615.52,0.26272835]
[1739241542766,1.07370546,616.71,615.49,0.26272835]
[1739241542965,1.07370546,616.71,615.48,1.69417263]
[1739241542966,1.07370546,616.71,615.5,0.26272835]
[1739241543166,1.07370546,616.71,615.49,0.26272835]
[1739241543370,1.07370546,617.95,615.5,0.26272835]
[1739241543564,1.78479413,617.94,615.51,0.26272835]
[1739241543869,2.858564,617.93,615.52,0.26274067]
[1739241544069,1.78485854,617.92,615.53,0.26274067]
[1739241544272,1.78485854,617.91,615.49,0.26274067]
[1739241544571,1.78485854,617.9,615.5,0.26274067]
[1739241544770,1.78485854,617.89,615.49,0.26274067]
[1739241545070,1.19745275,617.93,615.5,0.26274067]
[1739241545071,2.858564,617.88,615.5,0.26274067]
[1739241545266,1.78485854,617.87,615.49,0.26274067]
[1739241545467,1.78486788,617.86,615.5,0.26274988]
[1739241545662,1.78486788,617.85,615.51,0.26274988]
[1739241545969,1.78486788,617.84,615.52,0.26274988]
[1739241546169,1.78486788,617.84,615.48,1.69417263]
[1739241546170,1.78486788,617.83,615.49,0.26274988]
[1739241546471,1.78486788,617.82,615.48,1.69417263]
[1739241546770,0.32377652,617.71,615.49,0.5877731]
[1739241546971,1.78486788,617.7,615.5,0.58776782]
[1739241547166,2.85857334,617.69,615.51,0.32493379]
[1739241547366,0.32383944,617.59,615.51,0.32493379]
[1739241547568,1.78493536,617.58,615.51,0.32493379]
[1739241547768,1.78493536,617.57,615.51,0.32493379]
[1739241547968,0.32389713,617.48,615.52,0.2628119]
[1739241548168,1.78493536,617.47,615.53,0.32492323]
[1739241548369,0.32391286,617.45,615.54,0.2628119]
[1739241548572,1.78493536,617.44,615.55,0.32491267]
[1739241548771,0.3239286,617.42,615.56,0.2628119]
[1739241548970,1.78493536,617.41,615.56,0.2628119]
[1739241549165,1.78491727,617.4,615.57,0.26279823]
[1739241549367,0.32394959,617.38,615.58,0.58769507]
[1739241549569,1.78491727,617.37,615.59,0.26279823]
[1739241549772,0.32394959,617.38,615.59,0.26279823]
[1739241549773,1.78491727,617.36,615.59,0.26279823]
[1739241550073,1.78491727,617.35,615.59,0.26279823]
[1739241550272,0.32397583,617.33,615.6,0.32488628]
[1739241550472,1.78491727,617.32,615.61,0.26279823]
[1739241550671,2.85862273,617.31,615.62,0.32487573]
[1739241550872,0.32399682,617.29,615.63,0.26279823]
[1739241551072,1.78491727,617.28,615.64,0.32486518]
[1739241551267,0.32401257,617.26,615.64,0.32486518]
[1739241551469,1.78491727,617.25,615.64,0.32486518]
[1739241551669,1.78491727,617.24,615.65,0.2628487]
[1739241551876,1.78491727,617.23,615.65,0.2628487]
[1739241552072,0.32403881,617.21,615.65,0.2628487]
[1739241552274,1.78491727,617.2,615.65,0.2628487]
[1739241552475,0.32405457,617.18,615.65,0.2628487]
[1739241552774,1.78491727,617.17,615.65,0.2628487]
[1739241552974,0.32407032,617.15,615.65,0.2628487]
[1739241553167,1.78491727,617.14,615.65,0.2628487]
[1739241553371,0.32408607,617.12,615.65,0.2628487]
[1739241553574,1.78491727,617.11,615.65,0.2628487]
[1739241553774,0.32410183,617.09,615.65,0.2628487]
[1739241553969,1.78491727,617.08,615.65,0.2628487]
[1739241554175,0.32411758,617.06,615.66,0.26285458]
[1739241554376,1.77928307,617.05,615.65,0.26285458]
[1739241554576,0.32413334,617.03,615.65,0.26285458]
[1739241554778,1.77928307,617.02,615.65,0.26285458]
[1739241554971,0.3241491,617.0,615.65,0.26285458]
[1739241555171,2.85254284,616.99,615.65,0.26285458]
[1739241555370,1.77883738,616.98,615.65,0.26285458]
[1739241555575,3.17670771,616.97,615.65,0.26285458]
[1739241555775,0.32417537,616.95,615.65,0.26285458]
[1739241555973,1.77883738,616.94,615.65,0.26285458]
[1739241556175,2.85254284,616.93,615.65,0.26285458]
[1739241556377,1.77883738,616.92,615.65,0.26285458]
[1739241556575,1.77883738,616.91,615.65,0.26285458]
[1739241556779,2.10303903,616.9,615.65,0.26285458]
[1739241556978,1.77883738,616.89,615.65,0.26285458]
[1739241557179,1.77883738,616.88,615.65,0.26285458]
[1739241557378,2.1030548,616.87,615.65,0.26285458]
[1739241557678,1.77883738,616.86,615.65,0.26285458]
[1739241557880,2.10307036,616.85,615.66,0.26285949]
[1739241558076,2.10307561,616.84,615.67,0.26285949]
[1739241558281,2.10308087,616.83,615.65,0.26285949]
[1739241558477,2.10308613,616.82,615.66,0.26285949]
[1739241558680,2.10309138,616.81,615.67,0.26285949]
[1739241558879,2.10309664,616.8,615.65,0.26285949]
[1739241559079,2.1031019,616.79,615.66,0.26285949]
[1739241559278,2.10310715,616.78,615.65,0.26285949]
[1739241559481,2.10309899,616.77,615.66,0.26284612]
[1739241559678,1.77882901,616.76,615.67,0.26284612]
[1739241559885,2.85253447,616.75,615.68,0.26284612]
[1739241560077,1.77882901,616.74,615.65,0.26284612]
[1739241560282,1.77882901,616.73,615.66,0.26284612]
[1739241560477,1.77882901,616.72,615.67,0.26284612]
[1739241560679,2.85253447,616.71,615.68,0.26284612]
[1739241560877,1.77627636,616.7,615.69,0.26284612]
[1739241561082,1.47815841,616.69,615.64,0.32486518]
[1739241561280,2.55186387,616.68,615.65,0.26284126]
[1739241561484,1.47815841,616.67,615.65,0.26284126]
[1739241561783,1.07370546,616.66,615.65,0.26284126]
[1739241561981,1.47815841,616.65,615.65,0.26284126]
[1739241562583,1.07370546,616.64,615.65,0.26284126]
[1739241562885,1.47815841,616.63,615.66,0.26285543]
[1739241563081,1.47815841,616.63,615.67,0.26285543]
[1739241563284,1.07370546,616.62,615.65,0.26285543]
[1739241563587,1.47798404,616.61,615.66,0.26283198]
[1739241563785,1.07370546,616.6,615.67,0.26283198]
[1739241563982,1.47798404,616.59,615.65,0.26283198]
[1739241564181,1.47798404,616.59,615.66,0.26283198]
[1739241564383,1.07370546,616.6,615.67,0.26283198]
[1739241564587,1.07370546,616.6,615.64,0.32486518]
[1739241564781,0.32426998,616.77,615.65,0.26280896]
[1739241564984,1.47816301,616.76,615.65,0.26280896]
[1739241565182,2.54698672,616.76,615.65,0.26280896]
[1739241565386,1.47816301,616.75,615.65,0.26280896]
[1739241566382,2.54698906,616.74,615.65,0.26280896]
[1739241566589,1.47816535,616.73,615.66,0.2628153]
[1739241566783,2.54698906,616.73,615.65,0.2628153]
[1739241566983,1.47816535,616.72,615.66,0.2628153]
[1739241567183,1.47816535,616.72,615.67,0.2628153]
[1739241567389,1.06882371,616.71,615.68,0.2628153]
[1739241567587,1.47816535,616.7,615.69,0.2628153]
[1739241567788,1.47816535,616.7,615.7,0.2628153]
[1739241567989,1.06882371,616.69,615.71,0.2628153]
[1739241568292,1.47816535,616.68,615.72,0.2628153]
[1739241568491,1.47816535,616.68,615.65,0.2628153]
[1739241568691,1.47816535,616.68,615.66,0.2628153]
[1739241568889,1.47816535,616.68,615.67,0.2628153]
[1739241569089,1.47816535,616.68,615.68,0.2628153]
[1739241569292,1.06882371,616.67,615.69,0.2628153]
[1739241569491,1.47816535,616.66,615.7,0.2628153]
[1739241569687,1.47816535,616.66,615.71,0.2628153]
[1739241569990,1.06882371,616.65,615.72,0.26280442]
[1739241570192,1.47816535,616.64,615.73,0.26280442]
[1739241570393,1.06882371,616.65,615.74,0.26280442]
[1739241570590,1.06882371,616.65,615.64,0.32486518]
[1739241570591,1.06882371,616.65,615.75,0.26280442]
[1739241570788,1.06882371,616.65,615.76,0.26280442]
[1739241570991,1.06882371,616.76,615.77,0.26280442]
[1739241571190,1.47894119,616.75,615.78,0.26280442]
[1739241571590,1.47901774,616.74,615.79,0.26280442]
[1739241571791,2.54784145,616.73,615.65,0.26280442]
[1739241572091,2.5477567,616.72,615.66,0.58765904]
[1739241572288,1.47893299,616.71,615.67,0.26280442]
[1739241572691,1.06882371,616.7,615.67,0.26280442]
[1739241572892,1.47893299,616.69,615.67,0.26280442]
[1739241573091,1.47893299,616.69,615.67,0.58765377]
[1739241573291,1.06882371,616.68,615.67,0.32484935]
[1739241573494,1.47893299,616.67,615.68,0.26279888]
[1739241573794,1.47948182,616.66,615.68,0.26279888]
[1739241573994,1.47943627,616.65,615.68,0.26279888]
[1739241574398,1.06882371,616.64,615.68,0.26279888]
[1739241575095,1.06882371,616.76,615.68,0.26279888]
[1739241575290,1.47995593,616.75,615.68,0.26279888]
[1739241575597,1.06882371,616.74,615.68,0.26279888]
[1739241575795,1.48010975,616.73,615.68,0.26279888]
[1739241576095,1.06882371,616.72,615.68,0.26279888]
[1739241576295,1.48010975,616.71,615.68,0.26279888]
[1739241576693,1.06882371,616.7,615.67,0.32484935]
[1739241576894,1.48010975,616.69,615.68,0.26279231]
[1739241577095,1.06882371,616.68,615.68,0.26279231]
[1739241577298,1.48010975,616.67,615.68,0.26279231]
[1739241578091,1.06882371,616.66,615.68,0.26279231]
[1739241578297,1.06882371,616.66,615.67,0.32484935]
[1739241578492,1.48014776,616.65,615.68,0.26279334]
[1739241578699,1.48014776,616.64,615.68,0.26279334]
[1739241578893,1.48014776,616.63,615.68,0.26279334]
[1739241579100,1.48014776,616.62,615.68,0.26279334]
[1739241579499,1.06882371,616.61,615.68,0.26279334]
[1739241579698,1.48014776,616.6,615.68,0.26279334]
[1739241579895,1.06882371,616.61,615.68,0.26279334]
[1739241580098,1.47989132,616.6,615.68,0.26279334]
[1739241580297,1.06882371,616.59,615.68,0.26279334]
[1739241580500,1.48036989,616.58,615.68,0.26279334]
[1739241580701,1.48036989,616.58,615.69,0.26288334]
[1739241580902,1.06882371,616.57,615.68,0.26288334]
[1739241581101,1.48036989,616.56,615.67,0.32484935]
[1739241581299,1.48036989,616.56,615.68,0.2628845]
[1739241581504,1.48036989,616.56,615.67,0.32484935]
[1739241581797,1.06882371,616.55,615.67,0.32484935]
[1739241582007,1.48036989,616.54,615.67,0.32484935]
[1739241582597,1.06882371,616.53,615.67,0.32484935]
[1739241582798,1.48036989,616.52,615.67,0.32484935]
[1739241583304,1.06882371,616.51,615.67,0.32484935]
[1739241583603,1.48036989,616.5,615.67,0.32484935]
[1739241583806,1.48036989,616.5,615.3,1.19824383]
[1739241583997,1.48036989,616.5,615.31,0.58795721]
[1739241584202,1.48036989,616.5,615.32,0.58795192]
[1739241584402,2.55097191,616.49,615.33,0.58794664]
[1739241584599,1.48036989,616.48,615.34,0.58794136]
[1739241584803,1.07060202,616.47,615.35,0.58793608]
[1739241585004,1.48036989,616.46,615.36,0.2629178]
[1739241585403,1.07060202,616.45,615.37,0.26295318]
[1739241585606,1.07060202,616.45,615.36,0.26295318]
[1739241585607,1.48036989,616.44,615.36,0.26295318]
[1739241585806,1.48036989,616.44,615.37,0.26295318]
[1739241586007,1.48036989,616.44,615.36,0.26295318]
[1739241586204,1.07060202,616.43,615.37,0.26295318]
[1739241586403,1.48009384,616.42,615.38,0.26295318]
[1739241586607,1.48009384,616.42,615.39,0.26295318]
[1739241586808,1.48009384,616.42,615.36,0.26295318]
[1739241587003,2.55069586,616.41,615.35,0.32501828]
[1739241587208,1.48009384,616.4,615.36,0.26295652]
[1739241587509,1.07060202,616.39,615.36,0.26295652]
[1739241587707,1.48009384,616.38,615.36,0.26295652]
[1739241588010,1.07060202,616.37,615.36,0.26295652]
[1739241588201,1.48009384,616.36,615.36,0.26295652]
[1739241588406,1.48078267,616.35,615.36,0.26295652]
[1739241588609,2.55138469,616.34,615.36,0.26295652]
[1739241588810,1.48078267,616.33,615.36,0.26295652]
[1739241589010,1.48054072,616.32,615.36,0.26295652]
[1739241589211,1.48054072,616.31,615.36,0.26295652]
[1739241589407,1.07060202,616.31,615.36,0.26295652]
[1739241590111,1.07060202,616.76,615.36,0.26295652]
[1739241590304,2.10342403,616.75,615.36,0.26295652]
[1739241590506,1.77914353,616.74,615.36,0.26295652]
[1739241590704,2.10343454,616.73,615.36,0.26295652]
[1739241590902,2.1034398,616.72,615.36,0.26295652]
[1739241591103,2.10344506,616.71,615.36,0.26295652]
[1739241591311,3.17405234,616.7,615.36,0.26295652]
[1739241591510,3.1740576,616.69,615.36,0.26295652]
[1739241591707,2.10346084,616.68,615.36,0.26295652]
[1739241591913,2.1034661,616.67,615.36,0.26295652]
[1739241592108,3.17407338,616.66,615.36,0.26295652]
[1739241592411,2.10347633,616.65,615.37,0.2629505]
[1739241592605,0.62256222,616.64,615.38,0.2629505]
[1739241592807,2.10312146,616.63,615.36,0.2629505]
[1739241593014,2.10312672,616.62,615.37,0.2629505]
[1739241593208,1.77877786,616.61,615.38,0.2629505]
[1739241593409,0.32434886,616.62,615.35,0.32501828]
[1739241593410,1.77877786,616.6,615.39,0.2629505]
[1739241593608,1.77877786,616.59,615.36,0.2629505]
[1739241593808,2.84937988,616.58,615.37,0.2629505]
[1739241594014,1.48055398,616.57,615.35,0.32501828]
[1739241594214,1.48055398,616.56,615.35,0.32501828]
[1739241594516,1.77882942,616.55,615.35,0.32501828]
[1739241594815,2.10322037,616.54,615.35,0.32501828]
[1739241595016,2.84943144,616.53,615.35,0.32501828]
[1739241595217,1.80495545,616.52,615.35,0.32501828]
[1739241595417,1.48055398,616.51,615.35,0.32501828]
[1739241595716,0.66010171,617.35,615.35,0.32501828]
[1739241595717,2.875568,616.5,615.35,0.32501828]
[1739241596016,1.80497124,616.49,615.35,0.32501828]
[1739241596215,1.48055398,616.48,615.35,0.32501828]
[1739241596416,2.551156,616.48,615.35,0.32501828]
[1739241596615,1.48055398,616.47,615.35,0.32501828]
[1739241596809,2.551156,616.47,615.35,0.32501828]
[1739241597010,1.48055398,616.46,615.35,0.32501828]
[1739241597215,1.07060202,616.45,615.35,0.32501828]
[1739241597516,1.47983709,616.44,615.35,0.32501828]
[1739241597715,1.47983709,616.43,615.35,0.32501828]
[1739241597915,1.47983709,616.42,615.35,0.32501828]
[1739241598115,1.47983709,616.41,615.35,0.32501828]
[1739241598416,1.47983709,616.4,615.35,0.32501828]
[1739241598617,1.47983709,616.39,615.35,0.32501828]
[1739241599617,1.07060202,616.38,615.35,0.32501828]
[1739241599816,1.47983709,616.37,615.35,0.32501828]
[1739241600315,1.07060202,616.36,615.35,0.32501828]
[1739241600517,1.47983709,616.35,615.35,0.32501828]
[1739241601516,1.47983709,616.35,615.36,1.69592709]
[1739241601718,1.07060202,616.34,615.36,1.69592709]
[1739241601915,1.47983709,616.33,615.36,1.69592709]
[1739241602618,1.07060202,616.32,615.36,1.69592709]
[1739241602818,1.47983709,616.31,615.36,1.69592709]
[1739241603016,1.47983709,616.31,615.35,0.32501828]
[1739241603412,1.07060202,616.3,615.35,0.32501828]
[1739241603616,1.47983709,616.29,615.35,0.32501828]
[1739241604010,1.07060202,616.28,615.35,0.32501828]
[1739241604217,1.47983709,616.27,615.35,0.32501828]
[1739241604512,1.07060202,616.26,615.35,0.32501828]
[1739241604718,1.47983709,616.25,615.35,0.32501828]
[1739241605520,1.07060202,616.24,615.35,0.32501828]
[1739241605719,1.47983709,616.23,615.35,0.32501828]
[1739241606121,1.07060202,616.22,615.35,0.32501828]
[1739241606419,1.47983709,616.21,615.35,0.32501828]
[1739241606821,1.47925971,616.2,615.35,0.32501828]
[1739241607020,1.47925971,616.19,615.35,0.32501828]
[1739241607316,1.47925971,616.18,615.35,0.32501828]
[1739241607920,1.07060202,616.17,615.35,0.32501828]
[1739241608522,1.07060202,616.48,615.35,0.32501828]
[1739241608721,2.10193238,616.47,615.36,0.26303689]
[1739241609017,3.17174346,616.46,615.36,0.26303689]
[1739241609218,2.10189692,616.45,615.35,0.32501828]
[1739241609419,2.10190218,616.44,615.35,0.32501828]
[1739241609615,3.17175925,616.43,615.35,0.32501828]
[1739241609818,1.77745861,616.42,615.35,0.32501828]
[1739241610022,3.17176977,616.41,615.35,0.32501828]
[1739241610223,2.10192324,616.4,615.35,0.32501828]
[1739241610426,2.1019285,616.39,615.35,0.32501828]
[1739241610625,2.10193377,616.38,615.35,0.32501828]
[1739241610824,2.10193903,616.37,615.35,0.32501828]
[1739241611025,2.1019443,616.36,615.35,0.32501828]
[1739241611224,2.10174348,616.35,615.35,0.32501828]
[1739241611424,1.77725253,616.34,615.35,0.32501828]
[1739241611625,1.77725253,616.33,615.35,0.32501828]
[1739241611819,1.77725253,616.32,615.35,0.32501828]
[1739241612023,1.77725253,616.31,615.35,0.32501828]
[1739241612326,1.77725253,616.3,615.35,0.32501828]
[1739241612527,1.77725253,616.29,615.35,0.32501828]
[1739241612825,1.7772837,616.28,615.35,0.32501828]
[1739241613024,2.8471355,616.27,615.35,0.32501828]
[1739241613220,1.7772837,616.26,615.35,0.32501828]
[1739241613521,2.8471355,616.25,615.35,0.32501828]
[1739241613724,1.7772837,616.24,615.35,0.32501828]
[1739241613919,1.7772837,616.23,615.35,0.32501828]
[1739241614124,1.7772837,616.22,615.35,0.32501828]
[1739241614325,1.7772837,616.21,615.35,0.32501828]
[1739241614525,1.47894565,616.2,614.71,1.19824383]
[1739241614725,2.84717859,616.19,614.73,0.32534608]
[1739241614928,2.10190726,616.18,614.74,0.26314251]
[1739241615124,1.77732679,616.17,614.75,0.26314251]
[1739241615428,0.32458047,616.18,614.77,1.19824383]
[1739241615429,2.84619794,616.16,614.77,1.19824383]
[1739241615626,1.77634614,616.15,614.78,0.58846213]
[1739241615927,2.84619794,616.14,614.79,0.58845684]
[1739241616122,1.77639009,616.13,614.8,0.58845698]
[1739241616325,1.77639009,616.12,614.81,0.58845169]